{"text_format":"1","workbook":"xlsx","n_sheets":3,"sheets":["PISO","SUSPENSO","DADOS"],"not_rendered":{"charts":0,"images":107,"macros":1,"external_links":0,"defined_names":88,"comments":0,"pivot_tables":0},"unopened":[],"bounds":{"document_bytes":16777216,"sheet_cells":100000,"rows_first":2000,"rows_last":500,"rows_between":2000,"halvings":0,"cell_chars":16384,"cell_head_chars":4096},"cells_cut":0,"cells_raw":0,"read":"whole","date_system":"1900"}

{"sheet":"PISO","index":0,"n_rows":84,"n_cols":54,"rows_kept":84,"cut":false,"hidden":false,"merged":[[65,2,65,13],[54,15,54,19],[25,20,29,26],[79,29,79,54],[60,15,60,19],[60,31,60,53],[29,10,29,14],[51,10,51,14],[51,15,51,19],[25,10,25,14],[26,10,26,14],[71,29,71,54],[72,29,72,54],[73,29,73,54],[74,29,74,54],[75,29,75,54],[76,29,76,54],[77,29,77,54],[78,29,78,54],[39,10,39,14],[43,10,43,14],[44,10,44,14],[48,10,48,14],[28,2,28,9],[20,2,20,9],[21,2,21,9],[25,2,25,9],[26,2,26,9],[22,2,22,9],[23,2,23,9],[24,2,24,9],[45,2,45,9],[34,2,34,9],[35,2,35,9],[36,2,36,9],[37,2,37,9],[42,2,42,9],[29,2,29,9],[33,2,33,9],[81,30,81,53],[82,30,82,53],[42,10,42,14],[42,15,42,19],[64,2,64,4],[45,10,45,14],[45,15,45,19],[57,15,57,19],[55,15,55,19],[55,10,55,14],[55,2,55,9],[65,29,66,54],[61,10,61,14],[60,2,60,9],[60,10,60,14],[67,29,67,54],[68,29,68,54],[69,29,69,54],[61,15,61,19],[51,2,51,9],[80,29,80,54],[70,29,70,54],[58,2,58,9],[59,2,59,9],[17,1,28,1],[63,10,63,14],[63,15,63,19],[63,2,63,9],[57,2,57,9],[56,2,56,9],[53,10,53,14],[54,10,54,14],[49,10,49,14],[50,10,50,14],[52,10,52,14],[49,15,49,19],[58,10,58,14],[59,10,59,14],[57,10,57,14],[29,15,29,19],[21,15,21,19],[25,15,25,19],[26,15,26,19],[27,2,27,9],[22,15,22,19],[23,15,23,19],[24,15,24,19],[32,2,32,9],[14,14,14,15],[14,16,14,25],[18,15,18,19],[19,15,19,19],[18,10,18,14],[15,4,15,13],[15,14,15,15],[19,2,19,9],[4,21,4,25],[6,1,16,1],[7,2,7,25],[8,2,8,3],[8,4,8,25],[9,2,9,3],[11,2,11,3],[11,4,11,22],[11,24,11,25],[12,2,12,3],[12,4,12,13],[12,14,12,15],[12,16,12,22],[12,24,12,25],[9,4,9,13],[9,14,9,15],[9,16,9,25],[10,2,10,3],[10,4,10,13],[10,16,10,25],[16,2,16,25],[15,2,15,3],[15,16,15,19],[15,20,15,21],[13,2,13,3],[20,10,20,14],[21,10,21,14],[22,10,22,14],[23,10,23,14],[24,10,24,14],[35,15,35,19],[36,15,36,19],[34,10,34,14],[35,10,35,14],[36,10,36,14],[33,10,33,14],[33,15,33,19],[32,10,32,14],[32,15,32,19],[34,15,34,19],[65,14,65,19],[3,29,4,54],[2,4,2,25],[2,32,2,53],[38,2,38,9],[39,2,39,9],[43,2,43,9],[15,22,15,25],[10,14,10,15],[27,15,27,19],[28,15,28,19],[20,15,20,19],[4,2,4,5],[4,6,4,13],[4,14,4,15],[4,16,4,18],[4,19,4,20],[19,10,19,14],[18,2,18,9],[13,4,13,25],[14,2,14,3],[14,4,14,13],[27,10,27,14],[28,10,28,14],[67,4,80,26],[67,1,80,3],[48,2,48,9],[56,10,56,14],[58,15,58,19],[59,15,59,19],[56,15,56,19],[48,15,48,19],[37,15,37,19],[38,15,38,19],[39,15,39,19],[43,15,43,19],[44,15,44,19],[44,2,44,9],[37,10,37,14],[38,10,38,14],[49,2,49,9],[50,2,50,9],[52,2,52,9],[53,2,53,9],[54,2,54,9],[50,15,50,19],[52,15,52,19],[53,15,53,19]]}
[]
[null,null,null,null,null,null,null,null,null,null,null,null,null,null,null,null,null,null,null,null,null,null,null,null,null,"PG 1 / 2",null,null,null,null,null,null,null,null,null,null,null,null,null,null,null,null,null,null,null,null,null,null,null,null,null,null,null,"PG 2 / 2"]
[null,null,null,null,"FOLHA DE DADOS: ENSACADOR DE BIG BAG - PISO",null,null,null,null,null,null,null,null,null,null,null,null,null,null,null,null,null,null,null,null,null,null,null,null,null,null,null,"FOLHA DE DADOS: ENSACADOR DE BIG BAG - PISO"]
[null,null,null,null,null,null,null,null,null,null,null,null,null,null,null,null,null,null,null,null,null,null,null,null,null,null,null,null,null,"DIMENSÕES DO BIG BAG"]
[null,null,"Proposta Comercial nº:",null,null,null,null,null,null,null,null,null,null,null,"Revisão:",null,null,null,null,"Data:"]
[]
[]
[null,null,"Informações do CLIENTE"]
[null,null,"Empresa:"]
[null,null,"Unidade:",null,null,null,null,null,null,null,null,null,null,null,"CNPJ:"]
[null,null,"Divisão:",null,null,null,null,null,null,null,null,null,null,null,"Setor"]
[null,null,"Endereço:",null,null,null,null,null,null,null,null,null,null,null,null,null,null,null,null,null,null,null,null,"CEP:"]
[null,null,"Bairro:",null,null,null,null,null,null,null,null,null,null,null,"Cidade:",null,null,null,null,null,null,null,null,"UF:"]
[null,null,"Contato:"]
[null,null,"Setor",null,null,null,null,null,null,null,null,null,null,null,"Cargo:"]
[null,null,"e-mail:",null,null,null,null,null,null,null,null,null,null,null,"Telefone:",null,null,null,null,null,"Celular:"]
[]
[]
[null,null,"PROCESSO",null,null,null,null,null,null,null,"Exemplo",null,null,null,null,"Real"]
[null,null,"Produto",null,null,null,null,null,null,null,"AÇÚCAR"]
[null,null,"Origem do material",null,null,null,null,null,null,null,"SILO"]
[null,null,"Transporte do material para o Ensacador",null,null,null,null,null,null,null,"GRAVIDADE",null,null,null,null,"SELECIONE  ▼"]
[null,null,"Retirada do bag (carro manual/paleteira/outros)",null,null,null,null,null,null,null,"PALETEIRA"]
[null,null,"Área de ensacamento (segura/classificada)",null,null,null,null,null,null,null,"SEGURA",null,null,null,null,"SELECIONE  ▼"]
[null,null,"Intertravamento com CLP externo",null,null,null,null,null,null,null,"NÃO",null,null,null,null,"SELECIONE  ▼"]
[null,null,"Temperatura do produto (ºC)",null,null,null,null,null,null,null,30,null,null,null,null,null,null,null,null,null,"Preencher os campos numéricos somente \ncom valores"]
[null,null,"Temperatura ambiente (ºC)",null,null,null,null,null,null,null,25]
[null,null,"Densidade do produto (g/cm3)",null,null,null,null,null,null,null,0.95]
[null,null,"Peso Líquido do Big Bag cheio (kg)",null,null,null,null,null,null,null,2000]
[null,null,"J Distância Piso-Silo (mm)",null,null,null,null,null,null,null,2500]
[]
[]
[null,null,"BIG BAG",null,null,null,null,null,null,null,"Exemplo",null,null,null,null,"Real"]
[null,null,"Tipo de Big Bag",null,null,null,null,null,null,null,"RETANGULAR",null,null,null,null,"SELECIONE  ▼"]
[null,null,"A Diâmetro ou largura big bag (mm)",null,null,null,null,null,null,null,1000]
[null,null,"B Altura do big bag (mm)",null,null,null,null,null,null,null,1000]
[null,null,"C Altura da boca do big bag (mm)",null,null,null,null,null,null,null,400]
[null,null,"D Diâmetro da boca do big bag (mm)",null,null,null,null,null,null,null,350]
[null,null,"E Comprimento da alça (mm)",null,null,null,null,null,null,null,250]
[null,null,"F Distância entre alças (mm)",null,null,null,null,null,null,null,500,null,null,null,null,"N/A"]
[]
[]
[null,null,"PALLET",null,null,null,null,null,null,null,"Exemplo",null,null,null,null,"Real"]
[null,null,"G Comprimento do pallet (mm)",null,null,null,null,null,null,null,1000]
[null,null,"H Largura do pallet (mm)",null,null,null,null,null,null,null,1000]
[null,null,"I Altura do pallet (mm)",null,null,null,null,null,null,null,150]
[]
[]
[null,null,"ENSACADOR DE BIG BAG",null,null,null,null,null,null,null,"Exemplo",null,null,null,null,"Real"]
[null,null,"Ensacador em Aço Carbono ou Inox?",null,null,null,null,null,null,null,"AÇO INOX 304",null,null,null,null,"SELECIONE  ▼"]
[null,null,"Tipo de Válvula de Bloqueio",null,null,null,null,null,null,null,"GUILHOTINA ALIMENTÍCIA",null,null,null,null,"SELECIONE  ▼"]
[null,null,"Material do Diafragma da Válvula",null,null,null,null,null,null,null,"SINTERIZADO",null,null,null,null,"SELECIONE  ▼"]
[null,null,"Diâmetro do duto de aliementação (mm)",null,null,null,null,null,null,null,"6\" (152,4 mm)",null,null,null,null,"SELECIONE  ▼"]
[null,null,"Fixação do bocal do Big Bag",null,null,null,null,null,null,null,"INFLÁVEL",null,null,null,null,"SELECIONE  ▼"]
[null,null,"Plataforma de Pesagem",null,null,null,null,null,null,null,"COM TAMPO LISO",null,null,null,null,"SELECIONE  ▼"]
[null,null,"Fixação da Plataforma",null,null,null,null,null,null,null,"CONTRAMARCO",null,null,null,null,"SELECIONE  ▼"]
[null,null,"Tipo de Automação",null,null,null,null,null,null,null,"PAINEL IHM + TRANSMISSOR",null,null,null,null,"SELECIONE  ▼"]
[null,null,"Tipo de Comunicação",null,null,null,null,null,null,null,"DeviceNet + 4-20mA",null,null,null,null,"SELECIONE  ▼"]
[null,null,"Fixação do painel",null,null,null,null,null,null,null,"COM PEDESTAL",null,null,null,null,"SELECIONE  ▼"]
[null,null,"Comprimento Cabo Ensacador - Painel IHM (m)",null,null,null,null,null,null,null,"50 m",null,null,null,null,"SELECIONE  ▼"]
[null,null,"Sistema para Pré Insuflamento do Big Bag",null,null,null,null,null,null,null,"SIM",null,null,null,null,"SELECIONE  ▼",null,null,null,null,null,null,null,null,null,null,null,null,null,null,"K=",{"$f":"IF(OR(PISO_MEDIDA_B=\"\",PISO_MEDIDA_E=\"\",PISO_MEDIDA_I=\"\",LEFT(PISO_SELEÇÃO_FIX_PLATAFORMA,9)=\"SELECIONE\",PISO_SELEÇÃO_VALVULA=\"\",PISO_SELEÇÃO_PLATAFORMA=\"\"),0,\nIF(AND(PISO_SELEÇÃO_PLATAFORMA=\"COM TRILHO\",LEFT(PISO_SELEÇÃO_VALVULA,4)=\"GUIL\",PISO_SELEÇÃO_FIX_PLATAFORMA=\"COPO POSICIONADOR\"),SUM(PISO_MEDIDA_B+PISO_MEDIDA_E+PISO_MEDIDA_I+TRIL_COPO_GUIL),\nIF(AND(PISO_SELEÇÃO_PLATAFORMA=\"COM TRILHO\",LEFT(PISO_SELEÇÃO_VALVULA,4)=\"BORB\",PISO_SELEÇÃO_FIX_PLATAFORMA=\"COPO POSICIONADOR\"),SUM(PISO_MEDIDA_B+PISO_MEDIDA_E+PISO_MEDIDA_I+TRIL_COPO_BORB),\nIF(AND(PISO_SELEÇÃO_PLATAFORMA=\"COM TRILHO\",LEFT(PISO_SELEÇÃO_VALVULA,3)=\"SEM\",PISO_SELEÇÃO_FIX_PLATAFORMA=\"COPO POSICIONADOR\"),SUM(PISO_MEDIDA_B+PISO_MEDIDA_E+PISO_MEDIDA_I+TRIL_COPO_SEM),\nIF(AND(PISO_SELEÇÃO_PLATAFORMA=\"COM TRILHO\",LEFT(PISO_SELEÇÃO_VALVULA,4)=\"GUIL\",PISO_SELEÇÃO_FIX_PLATAFORMA=\"CONTRAMARCO\"),SUM(PISO_MEDIDA_B+PISO_MEDIDA_E+PISO_MEDIDA_I+TRIL_CONT_GUIL),\nIF(AND(PISO_SELEÇÃO_PLATAFORMA=\"COM TRILHO\",LEFT(PISO_SELEÇÃO_VALVULA,4)=\"BORB\",PISO_SELEÇÃO_FIX_PLATAFORMA=\"CONTRAMARCO\"),SUM(PISO_MEDIDA_B+PISO_MEDIDA_E+PISO_MEDIDA_I+TRIL_CONT_BORB),\nIF(AND(PISO_SELEÇÃO_PLATAFORMA=\"COM TRILHO\",LEFT(PISO_SELEÇÃO_VALVULA,3)=\"SEM\",PISO_SELEÇÃO_FIX_PLATAFORMA=\"CONTRAMARCO\"),SUM(PISO_MEDIDA_B+PISO_MEDIDA_E+PISO_MEDIDA_I+TRIL_CONT_SEM),\nIF(AND(PISO_SELEÇÃO_PLATAFORMA=\"COM TAMPO LISO\",LEFT(PISO_SELEÇÃO_VALVULA,4)=\"GUIL\",PISO_SELEÇÃO_FIX_PLATAFORMA=\"COPO POSICIONADOR\"),SUM(PISO_MEDIDA_B+PISO_MEDIDA_E+PISO_MEDIDA_I+LIS_COPO_GUIL),\nIF(AND(PISO_SELEÇÃO_PLATAFORMA=\"COM TAMPO LISO\",LEFT(PISO_SELEÇÃO_VALVULA,4)=\"BORB\",PISO_SELEÇÃO_FIX_PLATAFORMA=\"COPO POSICIONADOR\"),SUM(PISO_MEDIDA_B+PISO_MEDIDA_E+PISO_MEDIDA_I+LIS_COPO_BORB),\nIF(AND(PISO_SELEÇÃO_PLATAFORMA=\"COM TAMPO LISO\",LEFT(PISO_SELEÇÃO_VALVULA,3)=\"SEM\",PISO_SELEÇÃO_FIX_PLATAFORMA=\"COPO POSICIONADOR\"),SUM(PISO_MEDIDA_B+PISO_MEDIDA_E+PISO_MEDIDA_I+LIS_COPO_SEM),\nIF(AND(PISO_SELEÇÃO_PLATAFORMA=\"COM TAMPO LISO\",LEFT(PISO_SELEÇÃO_VALVULA,4)=\"GUIL\",PISO_SELEÇÃO_FIX_PLATAFORMA=\"CONTRAMARCO\"),SUM(PISO_MEDIDA_B+PISO_MEDIDA_E+PISO_MEDIDA_I+LIS_CONT_GUIL),\nIF(AND(PISO_SELEÇÃO_PLATAFORMA=\"COM TAMPO LISO\",LEFT(PISO_SELEÇÃO_VALVULA,4)=\"BORB\",PISO_SELEÇÃO_FIX_PLATAFORMA=\"CONTRAMARCO\"),SUM(PISO_MEDIDA_B+PISO_MEDIDA_E+PISO_MEDIDA_I+LIS_CONT_BORB),\nIF(AND(PISO_SELEÇÃO_PLATAFORMA=\"COM TAMPO LISO\",LEFT(PISO_SELEÇÃO_VALVULA,3)=\"SEM\",PISO_SELEÇÃO_FIX_PLATAFORMA=\"CONTRAMARCO\"),SUM(PISO_MEDIDA_B+PISO_MEDIDA_E+PISO_MEDIDA_I+LIS_CONT_SEM),\nIF(AND(PISO_SELEÇÃO_PLATAFORMA=\"COM MESA DE ROLETES\",LEFT(PISO_SELEÇÃO_VALVULA,4)=\"GUIL\",PISO_SELEÇÃO_FIX_PLATAFORMA=\"COPO POSICIONADOR\"),SUM(PISO_MEDIDA_B+PISO_MEDIDA_E+PISO_MEDIDA_I+ROL_COPO_GUIL),\nIF(AND(PISO_SELEÇÃO_PLATAFORMA=\"COM MESA DE ROLETES\",LEFT(PISO_SELEÇÃO_VALVULA,4)=\"BORB\",PISO_SELEÇÃO_FIX_PLATAFORMA=\"COPO POSICIONADOR\"),SUM(PISO_MEDIDA_B+PISO_MEDIDA_E+PISO_MEDIDA_I+ROL_COPO_BORB),\nIF(AND(PISO_SELEÇÃO_PLATAFORMA=\"COM MESA DE ROLETES\",LEFT(PISO_SELEÇÃO_VALVULA,3)=\"SEM\",PISO_SELEÇÃO_FIX_PLATAFORMA=\"COPO POSICIONADOR\"),SUM(PISO_MEDIDA_B+PISO_MEDIDA_E+PISO_MEDIDA_I+ROL_COPO_SEM),\nIF(AND(PISO_SELEÇÃO_PLATAFORMA=\"COM MESA DE ROLETES\",LEFT(PISO_SELEÇÃO_VALVULA,4)=\"GUIL\",PISO_SELEÇÃO_FIX_PLATAFORMA=\"CONTRAMARCO\"),SUM(PISO_MEDIDA_B+PISO_MEDIDA_E+PISO_MEDIDA_I+ROL_CONT_GUIL),\nIF(AND(PISO_SELEÇÃO_PLATAFORMA=\"COM MESA DE ROLETES\",LEFT(PISO_SELEÇÃO_VALVULA,4)=\"BORB\",PISO_SELEÇÃO_FIX_PLATAFORMA=\"CONTRAMARCO\"),SUM(PISO_MEDIDA_B+PISO_MEDIDA_E+PISO_MEDIDA_I+ROL_CONT_BORB),\nIF(AND(PISO_SELEÇÃO_PLATAFORMA=\"COM MESA DE ROLETES\",LEFT(PISO_SELEÇÃO_VALVULA,3)=\"SEM\",PISO_SELEÇÃO_FIX_PLATAFORMA=\"CONTRAMARCO\"),SUM(PISO_MEDIDA_B+PISO_MEDIDA_E+PISO_MEDIDA_I+ROL_CONT_SEM),\n0)))))))))))))))))))","v":0}]
[null,null,null,null,null,null,null,null,null,null,{"$f":"IF(PISO_SELEÇÃO_AREA=\"CLASSIFICADA\",\"CLASSIFICADA_PISO\",\nIF(PISO_SELEÇÃO_AREA=\"SEGURA\",\"SEGURA_PISO\",\"\"))","v":""},null,null,null,null,{"$f":"IF(PISO_SELEÇÃO_AUTOMAÇÃO=\"Indicador Linha 3000\",\"SEGURA_INDICADOR_PISO\",\nIF(PISO_SELEÇÃO_AUTOMAÇÃO=\"PAINEL IHM + TRANSMISSOR\",\"TAB_PISO_FIELDBUS[DESCRIÇÃO]\",\nIF(PISO_SELEÇÃO_AUTOMAÇÃO=\"CAIXA Exd COM DISPLAY\",\"SEGURA_INDICADOR_PISO\",\nIF(PISO_SELEÇÃO_AUTOMAÇÃO=\"CAIXA Exd + PAINEL IHM\",\"TAB_PISO_FIELDBUS[DESCRIÇÃO]\",\n\"\"\"\"))))","v":"\""}]
[]
[null,null,"Laudo Técnico NR-10 e NR-12",null,null,null,null,null,null,null,"SIM",null,null,null,null,"SELECIONE  ▼"]
[]
[null,null,"CÓDIGO DE ENCOMENDA",null,null,null,null,null,null,null,null,null,null,null,{"$f":"IFERROR(IF(OR(PISO_SELEÇÃO_MATERIAL_CONSTRUÇÃO=\"\",PISO_SELEÇÃO_BOCAL=\"\",PISO_SELEÇÃO_PLATAFORMA=\"\",PISO_SELEÇÃO_FIX_PAINEL=\"\"),\"\",\n_xlfn.CONCAT(\"ENS\",\n_xlfn.XLOOKUP(PISO_SELEÇÃO_MATERIAL_CONSTRUÇÃO,TAB_PISO_MATERIAL[DESCRIÇÃO],TAB_PISO_MATERIAL[CÓDIGO]),\n_xlfn.XLOOKUP(PISO_SELEÇÃO_VALVULA,TAB_geral_VALV[DESCRIÇÃO],TAB_geral_VALV[CÓDIGO]),\n_xlfn.XLOOKUP(PISO_SELEÇÃO_DUTO,TAB_PISO_DUTO[DESCRIÇÃO],TAB_PISO_DUTO[CÓDIGO]),\n_xlfn.XLOOKUP(PISO_SELEÇÃO_BOCAL,TAB_PISO_FIXADOR[DESCRIÇÃO],TAB_PISO_FIXADOR[CÓDIGO]),\n_xlfn.XLOOKUP(PISO_SELEÇÃO_PLATAFORMA,TAB_PISO_PLAT[DESCRIÇÃO],TAB_PISO_PLAT[CÓDIGO]),\n_xlfn.XLOOKUP(PISO_SELEÇÃO_FIX_PLATAFORMA,TAB_PISO_FIX_PLAT[DESCRIÇÃO],TAB_PISO_FIX_PLAT[CÓDIGO]),\n_xlfn.XLOOKUP(PISO_SELEÇÃO_FIX_PAINEL,TAB_PISO_FIX_PAINEL[DESCRIÇÃO],TAB_PISO_FIX_PAINEL[CÓDIGO]),\n_xlfn.XLOOKUP(PISO_SELEÇÃO_CABO,TAB_GERAL_CABO[DESCRIÇÃO],TAB_GERAL_CABO[CÓDIGO]),\n_xlfn.XLOOKUP(PISO_SELEÇÃO_AREA,TAB_GERAL_AREA[DESCRIÇÃO],TAB_GERAL_AREA[CÓDIGO]),\n_xlfn.XLOOKUP(PISO_SELEÇÃO_LAUDO,TAB_GERAL_RESPOSTA[DESCRIÇÃO],TAB_GERAL_RESPOSTA[CÓDIGO]),\n_xlfn.XLOOKUP(PISO_SELEÇÃO_INSU,TAB_GERAL_RESPOSTA[DESCRIÇÃO],TAB_GERAL_RESPOSTA[CÓDIGO]))),\"PREENCHA TODOS OS CAMPOS\")","v":"PREENCHA TODOS OS CAMPOS"},null,null,null,null,null,null,null,null,null,null,null,null,null,null,"INFORMAÇÕES IMPORTANTES"]
[]
[null,"Comentários:"]
[]
[]
[]
[]
[]
[]
[]
[]
[]
[]
[]
[]
[]
[null,null,"Alfa Instrumentos  R. Cel Mário de Azevedo, 138 - São Paulo-SP - Brasil - CEP 02710-020 F: (11) 3952-2299 - SAC: 0800-772-2910 \n",null,null,null,null,null,null,null,null,null,null,null,null,null,null,null,null,null,null,null,null,null,null,null,null,null,null,null,"Alfa Instrumentos  R. Cel Mário de Azevedo, 138 - São Paulo-SP - Brasil - CEP 02710-020 F: (11) 3952-2299 - SAC: 0800-772-2910 \n"]
[null,null,"vendas@alfainstrumentos.com.br - www.alfainstrumentos.com.br",null,null,null,null,null,null,null,null,null,null,null,null,null,null,null,null,null,null,null,null,null,null,null,null,null,null,null,"vendas@alfainstrumentos.com.br - www.alfainstrumentos.com.br"]
[null,null,null,null,null,null,null,null,null,null,null,null,null,null,null,null,null,null,null,null,null,null,null,null,null,"0026PR02",null,null,null,null,null,null,null,null,null,null,null,null,null,null,null,null,null,null,null,null,null,null,null,null,null,null,null,{"$f":"Z84","v":"0026PR02"}]

{"sheet":"SUSPENSO","index":1,"n_rows":83,"n_cols":54,"rows_kept":83,"cut":false,"hidden":true,"merged":[[63,2,63,4],[64,2,64,14],[64,15,64,19],[57,2,57,9],[57,10,57,14],[57,15,57,19],[60,15,60,19],[62,2,62,9],[62,10,62,14],[62,15,62,19],[59,2,59,9],[58,2,58,9],[51,2,51,9],[51,10,51,14],[51,15,51,19],[53,2,53,9],[53,10,53,14],[53,15,53,19],[56,15,56,19],[54,2,54,9],[54,10,54,14],[54,15,54,19],[52,2,52,9],[52,10,52,14],[52,15,52,19],[55,2,55,9],[55,10,55,14],[55,15,55,19],[56,2,56,9],[56,10,56,14],[49,15,49,19],[45,2,45,9],[45,10,45,14],[45,15,45,19],[46,2,46,9],[46,10,46,14],[46,15,46,19],[50,2,50,9],[50,10,50,14],[50,15,50,19],[6,1,16,1],[7,2,7,25],[8,2,8,3],[8,4,8,25],[9,2,9,3],[9,4,9,13],[9,14,9,15],[30,10,30,14],[30,15,30,19],[17,1,29,1],[18,2,18,9],[18,10,18,14],[18,15,18,19],[19,10,19,14],[19,15,19,19],[20,10,20,14],[20,15,20,19],[21,10,21,14],[9,16,9,25],[10,2,10,3],[10,4,10,13],[21,15,21,19],[22,10,22,14],[22,15,22,19],[24,10,24,14],[23,10,23,14],[23,15,23,19],[25,10,25,14],[25,15,25,19],[16,2,16,25],[2,4,2,25],[2,32,2,53],[3,29,4,54],[4,2,4,5],[4,6,4,13],[4,14,4,15],[4,16,4,18],[4,19,4,20],[4,21,4,25],[24,15,24,19],[15,2,15,3],[15,4,15,13],[15,14,15,15],[15,16,15,19],[15,20,15,21],[15,22,15,25],[13,2,13,3],[13,4,13,25],[14,2,14,3],[14,4,14,13],[14,14,14,15],[14,16,14,25],[10,14,10,15],[10,16,10,25],[11,2,11,3],[11,4,11,22],[11,24,11,25],[12,2,12,3],[12,4,12,13],[12,14,12,15],[12,16,12,22],[12,24,12,25],[80,2,80,25],[80,30,80,53],[81,2,81,25],[81,30,81,53],[29,10,29,14],[29,15,29,19],[33,2,33,9],[33,10,33,14],[33,15,33,19],[34,2,34,9],[34,10,34,14],[34,15,34,19],[30,2,30,9],[37,2,37,9],[37,10,37,14],[37,15,37,19],[38,2,38,9],[38,10,38,14],[38,15,38,19],[35,2,35,9],[35,10,35,14],[35,15,35,19],[36,2,36,9],[36,10,36,14],[26,10,26,14],[26,15,26,19],[27,10,27,14],[27,15,27,19],[28,10,28,14],[28,15,28,19],[65,30,65,53],[66,1,79,3],[66,4,79,26],[36,15,36,19],[43,2,43,9],[43,10,43,14],[43,15,43,19],[44,2,44,9],[44,10,44,14],[44,15,44,19],[39,2,39,9],[39,10,39,14],[39,15,39,19],[40,2,40,9],[40,10,40,14],[40,15,40,19],[49,2,49,9],[49,10,49,14]]}
[]
[null,null,null,null,null,null,null,null,null,null,null,null,null,null,null,null,null,null,null,null,null,null,null,null,null,"PG 1 / 2",null,null,null,null,null,null,null,null,null,null,null,null,null,null,null,null,null,null,null,null,null,null,null,null,null,null,null,"PG 2 / 2"]
[null,null,null,null,"FOLHA DE DADOS: ENSACADOR DE BIG BAG - SUSPENSO",null,null,null,null,null,null,null,null,null,null,null,null,null,null,null,null,null,null,null,null,null,null,null,null,null,null,null,"FOLHA DE DADOS: ENSACADOR DE BIG BAG - SUSPENSO"]
[null,null,null,null,null,null,null,null,null,null,null,null,null,null,null,null,null,null,null,null,null,null,null,null,null,null,null,null,null,"DIMENSÕES DO BIG BAG"]
[null,null,"Proposta Comercial nº:",null,null,null,null,null,null,null,null,null,null,null,"Revisão:",null,null,null,null,"Data:"]
[]
[]
[null,null,"Informações do CLIENTE"]
[null,null,"Empresa:"]
[null,null,"Unidade:",null,null,null,null,null,null,null,null,null,null,null,"CNPJ:"]
[null,null,"Divisão:",null,null,null,null,null,null,null,null,null,null,null,"Setor"]
[null,null,"Endereço:",null,null,null,null,null,null,null,null,null,null,null,null,null,null,null,null,null,null,null,null,"CEP:"]
[null,null,"Bairro:",null,null,null,null,null,null,null,null,null,null,null,"Cidade:",null,null,null,null,null,null,null,null,"UF:"]
[null,null,"Contato:"]
[null,null,"Setor",null,null,null,null,null,null,null,null,null,null,null,"Cargo:"]
[null,null,"e-mail:",null,null,null,null,null,null,null,null,null,null,null,"Telefone:",null,null,null,null,null,"Celular:"]
[]
[]
[null,null,"PROCESSO",null,null,null,null,null,null,null,"Exemplo",null,null,null,null,"Real"]
[null,null,"Produto",null,null,null,null,null,null,null,"AÇÚCAR"]
[null,null,"Densidade do produto (g/cm3)",null,null,null,null,null,null,null,0.95]
[null,null,"Peso Líquido do Big Bag cheio (kg)",null,null,null,null,null,null,null,"1000 kg"]
[null,null,"Origem do material (na alimentação)",null,null,null,null,null,null,null,"SILO"]
[null,null,"Transporte do material para o Ensacador",null,null,null,null,null,null,null,"GRAVIDADE"]
[null,null,"Diametro do Duto de Exaustão"]
[null,null,"Temperatura do produto (ºC)",null,null,null,null,null,null,null,30]
[null,null,"Temperatura ambiente (ºC)",null,null,null,null,null,null,null,25]
[null,null,"Retirada do bag (carro manual/talha/empilh./outros)",null,null,null,null,null,null,null,"CARRO MANUAL"]
[null,null,"Área de ensacamento (segura/classificada)",null,null,null,null,null,null,null,"SEGURA",null,null,null,null,"SEGURA"]
[null,null,"Intertravamento com CLP externo*",null,null,null,null,null,null,null,"NÃO",null,null,null,null,"SIM"]
[null,null,"J Distância Piso-Silo (mm)",null,null,null,null,null,null,null,1]
[]
[]
[null,null,"BIG BAG",null,null,null,null,null,null,null,"Exemplo",null,null,null,null,"Real"]
[null,null,"Tipo de Big Bag",null,null,null,null,null,null,null,null,null,null,null,null,"CILINDRICO"]
[null,null,"A Diâmetro ou largura big bag (mm)",null,null,null,null,null,null,null,1]
[null,null,"B Altura do big bag (mm)",null,null,null,null,null,null,null,1000]
[null,null,"C Altura da boca do big bag (mm)",null,null,null,null,null,null,null,1]
[null,null,"D Diâmetro da boca do big bag (mm)",null,null,null,null,null,null,null,350]
[null,null,"E Comprimento da alça (mm)",null,null,null,null,null,null,null,1]
[null,null,"F Distância entre alças (mm)",null,null,null,null,null,null,null,1]
[]
[]
[null,null,"PALLET",null,null,null,null,null,null,null,"Exemplo",null,null,null,null,"Real"]
[null,null,"G Comprimento do pallet (mm)",null,null,null,null,null,null,null,1]
[null,null,"H Largura do pallet (mm)",null,null,null,null,null,null,null,1]
[null,null,"I Altura do pallet (mm)",null,null,null,null,null,null,null,20]
[]
[]
[null,null,"ENSACADOR DE BIG BAG",null,null,null,null,null,null,null,"Exemplo",null,null,null,null,"Real"]
[null,null,"Ensacador em Aço Carbono ou Inox?",null,null,null,null,null,null,null,"AÇO INOX 304",null,null,null,null,"AÇO CARBONO"]
[null,null,"Tipo de Válvula de Bloqueio",null,null,null,null,null,null,null,"GUILHOTINA ALIMENTÍCIA",null,null,null,null,"GUILHOTINA ALIMENTÍCIA"]
[null,null,"Material do Disco da Válvula",null,null,null,null,null,null,null,"SINTERIZADO",null,null,null,null,"INOX"]
[null,null,"Diâmetro do duto de aliementação (mm)",null,null,null,null,null,null,null,"6\" (152,4 mm)",null,null,null,null,"8\" (203,2 mm)"]
[null,null,"Tipo de Automação",null,null,null,null,null,null,null,"PAINEL COM TRANSMISSOR",null,null,null,null,"PAINEL COM TRANSMISSOR"]
[null,null,"Tipo de Comunicação",null,null,null,null,null,null,null,"DeviceNet c/ 4-20mA",null,null,null,null,"DeviceNet"]
[null,null,"Fixação do painel",null,null,null,null,null,null,null,"COM PEDESTAL",null,null,null,null,"COM PEDESTAL"]
[null,null,"Comprimento Cabo Ensacador - Painel IHM (m)",null,null,null,null,null,null,null,"50 m"]
[null,null,"Sistema para Pré Insuflamento do Big Bag"]
[null,null,"mesa vibratória"]
[null,null,null,null,null,null,null,null,null,null,null,{"$f":"_xlfn.XLOOKUP(PISO_SELEÇÃO_AUTOMAÇÃO,TAB_PISO_AUTOMAÇÃO[DESCRIÇÃO],TAB_PISO_AUTOMAÇÃO[DESC. SIMP.],FALSE)","v":false}]
[]
[null,null,"Laudo Técnico",null,null,null,null,null,null,null,"SIM",null,null,null,null,"SIM"]
[]
[null,null,"CÓDIGO DE ENCOMENDA",null,null,null,null,null,null,null,null,null,null,null,null,{"$f":"_xlfn.CONCAT(\"ENS \",\n_xlfn.XLOOKUP(PISO_SELEÇÃO_MATERIAL_CONSTRUÇÃO,TAB_PISO_MATERIAL[DESCRIÇÃO],TAB_PISO_MATERIAL[CÓDIGO]),\"-\",\n_xlfn.XLOOKUP(PISO_SELEÇÃO_VALVULA,TAB_geral_VALV[DESCRIÇÃO],TAB_geral_VALV[CÓDIGO]),\"-\",\n_xlfn.XLOOKUP(PISO_SELEÇÃO_DUTO,TAB_PISO_DUTO[DESCRIÇÃO],TAB_PISO_DUTO[CÓDIGO]),\"-\",\n_xlfn.XLOOKUP(PISO_SELEÇÃO_BOCAL,TAB_PISO_FIXADOR[DESCRIÇÃO],TAB_PISO_FIXADOR[CÓDIGO]),\"-\",\n_xlfn.XLOOKUP(PISO_SELEÇÃO_PLATAFORMA,TAB_PISO_PLAT[DESCRIÇÃO],TAB_PISO_PLAT[CÓDIGO]),\"-\",\n_xlfn.XLOOKUP(_xlfn.SINGLE(PISO_SELEÇÃO_FIX_PLATAFORMA),TAB_PISO_FIX_PLAT[DESCRIÇÃO],TAB_PISO_FIX_PLAT[CÓDIGO]),\"-\",\n_xlfn.XLOOKUP(PISO_SELEÇÃO_FIX_PAINEL,TAB_PISO_FIX_PAINEL[DESCRIÇÃO],TAB_PISO_FIX_PAINEL[CÓDIGO]),\"-\",\n_xlfn.XLOOKUP(PISO_SELEÇÃO_AREA,TAB_GERAL_AREA[DESCRIÇÃO],TAB_GERAL_AREA[CÓDIGO]))","v":{"$error":"#N/A"}}]
[null,null,null,null,null,null,null,null,null,null,null,null,null,null,null,null,null,null,null,null,null,null,null,null,null,null,null,null,null,null,"INFORMAÇÕES"]
[null,"Comentários:"]
[]
[]
[]
[]
[]
[]
[]
[]
[]
[]
[]
[]
[]
[null,null,"Alfa Instrumentos  R. Cel Mário de Azevedo, 138 - São Paulo-SP - Brasil - CEP 02710-020 F: (11) 3952-2299 - SAC: 0800-772-2910 \n",null,null,null,null,null,null,null,null,null,null,null,null,null,null,null,null,null,null,null,null,null,null,null,null,null,null,null,"Alfa Instrumentos  R. Cel Mário de Azevedo, 138 - São Paulo-SP - Brasil - CEP 02710-020 F: (11) 3952-2299 - SAC: 0800-772-2910 \n"]
[null,null,"vendas@alfainstrumentos.com.br - www.alfainstrumentos.com.br",null,null,null,null,null,null,null,null,null,null,null,null,null,null,null,null,null,null,null,null,null,null,null,null,null,null,null,"vendas@alfainstrumentos.com.br - www.alfainstrumentos.com.br"]
[null,null,null,null,null,null,null,null,null,null,null,null,null,null,null,null,null,null,null,null,null,null,null,null,null,{"$f":"PISO!Z84","v":"0026PR02"},null,null,null,null,null,null,null,null,null,null,null,null,null,null,null,null,null,null,null,null,null,null,null,null,null,null,null,{"$f":"Z83","v":"0026PR02"}]

{"sheet":"DADOS","index":2,"n_rows":123,"n_cols":16,"rows_kept":123,"cut":false,"hidden":true,"merged":[[2,2,2,8],[93,2,93,8],[48,2,48,8],[50,2,50,4]]}
[]
[]
[null,null,"GERAL"]
[]
[null,null,"QUANTIDADE DE CABO",null,null,null,"ESPECIFICAÇÃO DA VÁLVULA"]
[null,null,"DESCRIÇÃO","CÓDIGO","DESC. SIMP.",null,"DESCRIÇÃO","CÓDIGO","DESC. SIMP."]
[null,null,"SEM CABO",0,"000",null,"BORBOLETA ALIMENTÍCIA",1,"BO"]
[null,null,"10 m",1,"010",null,"BORBOLETA USO GERAL",2,"BG"]
[null,null,"20 m",2,"020",null,"GUILHOTINA ALIMENTÍCIA",3,"GO"]
[null,null,"50 m",3,"050",null,"GUILHOTINA USO GERAL",4,"GG"]
[null,null,"100 m",4,"100",null,"SEM VÁLVULA",0,"SV"]
[null,null,"200 m",5,"200"]
[null,null,"300 m",6,"300",null,"ÁREA DE ENSACAMENTO"]
[null,null,null,null,null,null,"DESCRIÇÃO","CÓDIGO","DESC. SIMP."]
[null,null,"FIXAÇÃO DO PAINEL",null,null,null,"SEGURA","S"]
[null,null,"DESCRIÇÃO","CÓDIGO","DESC. SIMP.",null,"CLASSIFICADA","C"]
[null,null,"COM PEDESTAL","C","C/PD"]
[null,null,"SEM PEDESTAL","S","S/PD",null,"RESPOSTA"]
[null,null,null,null,null,null,"DESCRIÇÃO","CÓDIGO","DESC. SIMP."]
[null,null,"TIPO DE AUTOMAÇÃO",null,null,null,"SIM","S"]
[null,null,"DESCRIÇÃO","CÓDIGO","DESC. SIMP.",null,"NÃO","N"]
[null,null,"PAINEL COM TRANSMISSOR",0]
[null,null,"SOMENTE TRANSMISSOR",1,null,null,"TIPO DE COMUNICAÇÃO"]
[null,null,"INDICADOR 3102CP",2,null,null,"DESCRIÇÃO","CÓDIGO","DESC. SIMP."]
[null,null,"INDICADOR 3102CS",3,null,null,"DeviceNet",0]
[null,null,"INDICADOR 3103CP",4,null,null,"DeviceNet + 4-20mA",1]
[null,null,"INDICADOR 3103CS",5,null,null,"Ethernet TCP/IP",2]
[null,null,"INDICADOR 3104CP",6,null,null,"Ethernet TCP/IP + 4-20mA",3]
[null,null,"INDICADOR 3104CS",7,null,null,"EtherNet/IP",4]
[null,null,"INDICADOR 3107CP",8,null,null,"EtherNet/IP + 4-20mA",5]
[null,null,"INDICADOR 3107CS",9,null,null,"ModBus RTU",6]
[null,null,null,null,null,null,"ModBus RTU + 4-20mA",7]
[null,null,"TIPO DE BIG BAG",null,null,null,"ModBus TCP/IP",8]
[null,null,"DESCRIÇÃO","CÓDIGO","REGRAS",null,"ModBus TCP/IP + 4-20mA",9]
[null,null,"CILINDRICO",null,null,null,"Profibus","A"]
[null,null,"RETANGULAR",null,null,null,"Profibus + 4-20mA","B"]
[null,null,null,null,null,null,"Profinet","C"]
[null,null,null,null,null,null,"Profinet + 4-20mA","D"]
[null,null,null,null,null,null,"Sem comunicação","E"]
[null,null,null,null,null,null,"Somente 4-20mA","F"]
[]
[null,null,null,null,null,null,"DESCRIÇÃO","CÓDIGO","DESC. SIMP."]
[null,null,null,null,null,null,"INOX"]
[null,null,null,null,null,null,"SINTERIZADO"]
[]
[]
[]
[]
[null,null,"PISO"]
[]
[null,null,"DADOS",null,null,null,"REGRAS"]
[]
[null,null,"MATERIAL DE CONSTRUÇÃO"]
[null,null,"DESCRIÇÃO","CÓDIGO","DESC. SIMP.",null,"CLASSIFICADA"]
[null,null,"AÇO CARBONO",1,null,null,"CAIXA Exd COM DISPLAY"]
[null,null,"AÇO INOX 304",2,null,null,"CAIXA Exd + PAINEL IHM"]
[]
[null,null,"FIXAÇÃO DO BOCAL",null,null,null,"SEGURA"]
[null,null,"DESCRIÇÃO","CÓDIGO","DESC. SIMP.",null,"PAINEL IHM + TRANSMISSOR"]
[null,null,"GRAMPO MECÂNICO","M",null,null,"INDICADOR LINHA 3000"]
[null,null,"INFLÁVEL","I"]
[null,null,"SEM FIXADOR","O",null,null,"SEGURA+INDICADOR"]
[null,null,null,null,null,null,"ModBus RTU"]
[null,null,"DIÂMETRO DUTO DE ALIEMENTAÇÃO",null,null,null,"ModBus TCP/IP"]
[null,null,"DESCRIÇÃO","CÓDIGO","DESC. SIMP.",null,"Profibus"]
[null,null,"6\" (152,4 mm)",1,"06",null,"DeviceNet"]
[null,null,"8\" (203,2 mm)",2,"08",null,"EtherNet/IP"]
[null,null,"10\" (254 mm)",3,"10",null,"Ethernet TCP/IP"]
[null,null,"12\" (304,8 mm)",4,"12",null,"Profinet"]
[]
[null,null,"FIXAÇÃO DA PLATAFORMA"]
[null,null,"DESCRIÇÃO","CÓDIGO","DESC. SIMP.",null,"VALORES PARA CALCULAR MEDIDA K"]
[null,null,"CONTRAMARCO","C",null,null,"DESCRIÇÃO","ONDE USA","VALOR",null,null,null,null,null,"ROL+CONT+GUIL",{"$f":"SUM(\n_xlfn.XLOOKUP(\"COM MESA DE ROLETES\",TAB_MEDIDA_K[DESCRIÇÃO],TAB_MEDIDA_K[VALOR]),\n_xlfn.XLOOKUP(\"CONTRAMARCO\",TAB_MEDIDA_K[DESCRIÇÃO],TAB_MEDIDA_K[VALOR]),\n_xlfn.XLOOKUP(\"GUIL\",TAB_MEDIDA_K[DESCRIÇÃO],TAB_MEDIDA_K[VALOR]),$I$83,$I$84)","v":827}]
[null,null,"COPO POSICIONADOR","K",null,null,"COM MESA DE ROLETES",null,85,null,null,null,null,null,"ROL+CONT+BORB",{"$f":"SUM(\n_xlfn.XLOOKUP(\"COM MESA DE ROLETES\",TAB_MEDIDA_K[DESCRIÇÃO],TAB_MEDIDA_K[VALOR]),\n_xlfn.XLOOKUP(\"CONTRAMARCO\",TAB_MEDIDA_K[DESCRIÇÃO],TAB_MEDIDA_K[VALOR]),\n_xlfn.XLOOKUP(\"BORB\",TAB_MEDIDA_K[DESCRIÇÃO],TAB_MEDIDA_K[VALOR]),$I$83,$I$84)","v":796}]
[null,null,null,null,null,null,"COM TAMPO LISO",null,0,null,null,null,null,null,"ROL+CONT+SEM",{"$f":"SUM(\n_xlfn.XLOOKUP(\"COM MESA DE ROLETES\",TAB_MEDIDA_K[DESCRIÇÃO],TAB_MEDIDA_K[VALOR]),\n_xlfn.XLOOKUP(\"CONTRAMARCO\",TAB_MEDIDA_K[DESCRIÇÃO],TAB_MEDIDA_K[VALOR]),\n_xlfn.XLOOKUP(\"SEM\",TAB_MEDIDA_K[DESCRIÇÃO],TAB_MEDIDA_K[VALOR]),$I$83,$I$84)","v":709}]
[null,null,null,null,null,null,"COM TRILHO",null,156,null,null,null,null,null,"ROL+COPO+GUIL",{"$f":"SUM(\n_xlfn.XLOOKUP(\"COM MESA DE ROLETES\",TAB_MEDIDA_K[DESCRIÇÃO],TAB_MEDIDA_K[VALOR]),\n_xlfn.XLOOKUP(\"COPO POSICIONADOR\",TAB_MEDIDA_K[DESCRIÇÃO],TAB_MEDIDA_K[VALOR]),\n_xlfn.XLOOKUP(\"GUIL\",TAB_MEDIDA_K[DESCRIÇÃO],TAB_MEDIDA_K[VALOR]),$I$83,$I$84)","v":944}]
[null,null,"PLATAFORMA DE PESAGEM",null,null,null,"CONTRAMARCO",null,0,null,null,null,null,null,"ROL+COPO+BORB",{"$f":"SUM(\n_xlfn.XLOOKUP(\"COM MESA DE ROLETES\",TAB_MEDIDA_K[DESCRIÇÃO],TAB_MEDIDA_K[VALOR]),\n_xlfn.XLOOKUP(\"COPO POSICIONADOR\",TAB_MEDIDA_K[DESCRIÇÃO],TAB_MEDIDA_K[VALOR]),\n_xlfn.XLOOKUP(\"BORB\",TAB_MEDIDA_K[DESCRIÇÃO],TAB_MEDIDA_K[VALOR]),H83,H84)","v":289}]
[null,null,"DESCRIÇÃO","CÓDIGO","DESC. SIMP.",null,"COPO POSICIONADOR",null,117,null,null,null,null,null,"ROL+COPO+SEM",{"$f":"SUM(\n_xlfn.XLOOKUP(\"COM MESA DE ROLETES\",TAB_MEDIDA_K[DESCRIÇÃO],TAB_MEDIDA_K[VALOR]),\n_xlfn.XLOOKUP(\"COPO POSICIONADOR\",TAB_MEDIDA_K[DESCRIÇÃO],TAB_MEDIDA_K[VALOR]),\n_xlfn.XLOOKUP(\"SEM\",TAB_MEDIDA_K[DESCRIÇÃO],TAB_MEDIDA_K[VALOR]),$I$83,$I$84)","v":826}]
[null,null,"COM MESA DE ROLETES","R",null,null,"GUIL",null,118,null,null,null,null,null,"LIS+CONT+GUIL",{"$f":"SUM(\n_xlfn.XLOOKUP(\"COM TAMPO LISO\",TAB_MEDIDA_K[DESCRIÇÃO],TAB_MEDIDA_K[VALOR]),\n_xlfn.XLOOKUP(\"CONTRAMARCO\",TAB_MEDIDA_K[DESCRIÇÃO],TAB_MEDIDA_K[VALOR]),\n_xlfn.XLOOKUP(\"GUIL\",TAB_MEDIDA_K[DESCRIÇÃO],TAB_MEDIDA_K[VALOR]),I83,H84)","v":600}]
[null,null,"COM TAMPO LISO","L",null,null,"BORB",null,87,null,null,null,null,null,"LIS+CONT+BORB",{"$f":"SUM(\n_xlfn.XLOOKUP(\"COM TAMPO LISO\",TAB_MEDIDA_K[DESCRIÇÃO],TAB_MEDIDA_K[VALOR]),\n_xlfn.XLOOKUP(\"CONTRAMARCO\",TAB_MEDIDA_K[DESCRIÇÃO],TAB_MEDIDA_K[VALOR]),\n_xlfn.XLOOKUP(\"BORB\",TAB_MEDIDA_K[DESCRIÇÃO],TAB_MEDIDA_K[VALOR]),$I$83,$I$84)","v":711}]
[null,null,"COM TRILHO","T",null,null,"SEM",null,0,null,null,null,null,null,"LIS+CONT+SEM",{"$f":"SUM(\n_xlfn.XLOOKUP(\"COM TAMPO LISO\",TAB_MEDIDA_K[DESCRIÇÃO],TAB_MEDIDA_K[VALOR]),\n_xlfn.XLOOKUP(\"CONTRAMARCO\",TAB_MEDIDA_K[DESCRIÇÃO],TAB_MEDIDA_K[VALOR]),\n_xlfn.XLOOKUP(\"SEM\",TAB_MEDIDA_K[DESCRIÇÃO],TAB_MEDIDA_K[VALOR]),$I$83,$I$84)","v":624}]
[null,null,"COM MESA VIBRATÓRIA","V"]
[null,null,null,null,null,null,"DISTÂNCIA EIXO LIBERADOR ATÉ TOPO DO DUTO",null,482,null,null,null,null,null,"LIS+COPO+GUIL",{"$f":"SUM(\n_xlfn.XLOOKUP(\"COM TAMPO LISO\",TAB_MEDIDA_K[DESCRIÇÃO],TAB_MEDIDA_K[VALOR]),\n_xlfn.XLOOKUP(\"COPO POSICIONADOR\",TAB_MEDIDA_K[DESCRIÇÃO],TAB_MEDIDA_K[VALOR]),\n_xlfn.XLOOKUP(\"GUIL\",TAB_MEDIDA_K[DESCRIÇÃO],TAB_MEDIDA_K[VALOR]),$I$83,$I$84)","v":859}]
[null,null,"ESPECIFICAÇÃO DA VÁLVULA",null,null,null,"ADAPTADOR DE MANGOTE",null,142,null,null,null,null,null,"LIS+COPO+BORB",{"$f":"SUM(\n_xlfn.XLOOKUP(\"COM TAMPO LISO\",TAB_MEDIDA_K[DESCRIÇÃO],TAB_MEDIDA_K[VALOR]),\n_xlfn.XLOOKUP(\"COPO POSICIONADOR\",TAB_MEDIDA_K[DESCRIÇÃO],TAB_MEDIDA_K[VALOR]),\n_xlfn.XLOOKUP(\"BORB\",TAB_MEDIDA_K[DESCRIÇÃO],TAB_MEDIDA_K[VALOR]),$I$83,$I$84)","v":828}]
[null,null,"DESCRIÇÃO","CÓDIGO","DESC. SIMP.",null,null,null,null,null,null,null,null,null,"LIS+COPO+SEM",{"$f":"SUM(\n_xlfn.XLOOKUP(\"COM TAMPO LISO\",TAB_MEDIDA_K[DESCRIÇÃO],TAB_MEDIDA_K[VALOR]),\n_xlfn.XLOOKUP(\"COPO POSICIONADOR\",TAB_MEDIDA_K[DESCRIÇÃO],TAB_MEDIDA_K[VALOR]),\n_xlfn.XLOOKUP(\"SEM\",TAB_MEDIDA_K[DESCRIÇÃO],TAB_MEDIDA_K[VALOR]),$I$83,$I$84)","v":741}]
[null,null,"GUILHOTINA ALIMENTÍCIA","GO",null,null,"TRANSPORTE DO MATERIAL",null,null,null,null,null,null,null,"TRIL+CONT+GUIL",{"$f":"SUM(\n_xlfn.XLOOKUP(\"COM TRILHO\",TAB_MEDIDA_K[DESCRIÇÃO],TAB_MEDIDA_K[VALOR]),\n_xlfn.XLOOKUP(\"CONTRAMARCO\",TAB_MEDIDA_K[DESCRIÇÃO],TAB_MEDIDA_K[VALOR]),\n_xlfn.XLOOKUP(\"GUIL\",TAB_MEDIDA_K[DESCRIÇÃO],TAB_MEDIDA_K[VALOR]),$I$83,$I$84)","v":898}]
[null,null,"GUILHOTINA USO GERAL","GG",null,null,"DESCRIÇÃO","CÓDIGO","REGRAS",null,null,null,null,null,"TRIL+CONT+BORB",{"$f":"SUM(\n_xlfn.XLOOKUP(\"COM TRILHO\",TAB_MEDIDA_K[DESCRIÇÃO],TAB_MEDIDA_K[VALOR]),\n_xlfn.XLOOKUP(\"CONTRAMARCO\",TAB_MEDIDA_K[DESCRIÇÃO],TAB_MEDIDA_K[VALOR]),\n_xlfn.XLOOKUP(\"BORB\",TAB_MEDIDA_K[DESCRIÇÃO],TAB_MEDIDA_K[VALOR]),$I$83,$I$84)","v":867}]
[null,null,"BORBOLETA ALIMENTÍCIA","BO",null,null,"GRAVIDADE",null,null,null,null,null,null,null,"TRIL+CONT+SEM",{"$f":"SUM(\n_xlfn.XLOOKUP(\"COM TRILHO\",TAB_MEDIDA_K[DESCRIÇÃO],TAB_MEDIDA_K[VALOR]),\n_xlfn.XLOOKUP(\"CONTRAMARCO\",TAB_MEDIDA_K[DESCRIÇÃO],TAB_MEDIDA_K[VALOR]),\n_xlfn.XLOOKUP(\"SEM\",TAB_MEDIDA_K[DESCRIÇÃO],TAB_MEDIDA_K[VALOR]),$I$83,$I$84)","v":780}]
[null,null,"BORBOLETA USO GERAL","BG",null,null,"ROSCA TRANSPORTADORA",null,null,null,null,null,null,null,"TRIL+COPO+GUIL",{"$f":"SUM(\n_xlfn.XLOOKUP(\"COM TRILHO\",TAB_MEDIDA_K[DESCRIÇÃO],TAB_MEDIDA_K[VALOR]),\n_xlfn.XLOOKUP(\"COPO POSICIONADOR\",TAB_MEDIDA_K[DESCRIÇÃO],TAB_MEDIDA_K[VALOR]),\n_xlfn.XLOOKUP(\"GUIL\",TAB_MEDIDA_K[DESCRIÇÃO],TAB_MEDIDA_K[VALOR]),$I$83,$I$84)","v":1015}]
[null,null,"SEM VÁLVULA","SV",null,null,"OUTROS",null,null,null,null,null,null,null,"TRIL+COPO+BORB",{"$f":"SUM(\n_xlfn.XLOOKUP(\"COM TRILHO\",TAB_MEDIDA_K[DESCRIÇÃO],TAB_MEDIDA_K[VALOR]),\n_xlfn.XLOOKUP(\"COPO POSICIONADOR\",TAB_MEDIDA_K[DESCRIÇÃO],TAB_MEDIDA_K[VALOR]),\n_xlfn.XLOOKUP(\"BORB\",TAB_MEDIDA_K[DESCRIÇÃO],TAB_MEDIDA_K[VALOR]),$I$83,$I$84)","v":984}]
[null,null,null,null,null,null,null,null,null,null,null,null,null,null,"TRIL+COPO+SEM",{"$f":"SUM(\n_xlfn.XLOOKUP(\"COM TRILHO\",TAB_MEDIDA_K[DESCRIÇÃO],TAB_MEDIDA_K[VALOR]),\n_xlfn.XLOOKUP(\"COPO POSICIONADOR\",TAB_MEDIDA_K[DESCRIÇÃO],TAB_MEDIDA_K[VALOR]),\n_xlfn.XLOOKUP(\"SEM\",TAB_MEDIDA_K[DESCRIÇÃO],TAB_MEDIDA_K[VALOR]),$I$83,$I$84)","v":897}]
[]
[]
[null,null,"SUSPENSO"]
[]
[null,null,"MATERIAL DE CONSTRUÇÃO"]
[null,null,"DESCRIÇÃO","CÓDIGO","REGRAS"]
[null,null,"AÇO CARBONO",6123]
[null,null,"AÇO INOX 304",6124]
[]
[]
[null,null,"DIAMETRO DO DUTO DE EXAUSTÃO"]
[null,null,"DESCRIÇÃO","CÓDIGO","REGRAS"]
[null,null,"1/2\" (12,7 mm)"]
[null,null,"2\" (50,8 mm)"]
[null,null,"2 1/2\" (63,5 mm)"]
[null,null,"3\" (76,2 mm)"]
[null,null,"4\" (101,6 mm)"]
[]
[null,null,"ESPECIFICAÇÃO DA VÁLVULA"]
[null,null,"DESCRIÇÃO","CÓDIGO","REGRAS"]
[null,null,"GUILHOTINA ALIMENTÍCIA","GO"]
[null,null,"GUILHOTINA USO GERAL","GG"]
[null,null,"BORBOLETA ALIMENTÍCIA","BO"]
[null,null,"BORBOLETA USO GERAL","BG"]
[null,null,"SEM VÁLVULA","SV"]
[]
[null,null,"DIÂMETRO DUTO DE ALIEMENTAÇÃO"]
[null,null,"DESCRIÇÃO","CÓDIGO","REGRAS"]
[null,null,"6\" (152,4 mm)","06"]
[null,null,"8\" (203,2 mm)","08"]
[null,null,"10\" (254 mm)","10"]
[null,null,"12\" (304,8 mm)","12"]